fUST/lending_fUST_20240925
["ID","MTS","AMOUNT","RATE_DAILY","PERIOD"]
[339098281,1727243442987,-533.06619255,0.00016438,2]
[339098284,1727243442997,-508.55,0.00016438,2]
[339098286,1727243443007,-1022.74,0.00016438,2]
[339098288,1727243443019,-547.65287999,0.00016438,2]
[339098290,1727243443031,-500.0,0.00016438,2]
[339098293,1727243443043,-500.0,0.00016438,2]
[339098295,1727243443053,-500.0,0.00016438,2]
[339098297,1727243443063,-500.0,0.00016438,2]
[339098299,1727243443074,-500.0,0.00016438,2]
[339098301,1727243443085,-822.77,0.00016438,2]
[339098303,1727243443095,-500.0,0.00016438,2]
[339098305,1727243443105,-511.06119485,0.00016438,2]
[339098307,1727243443115,-500.0,0.00016438,2]
[339098310,1727243443129,-500.0,0.00016438,2]
[339098312,1727243443140,-282.01,0.00016438,2]
[339098314,1727243443150,-500.0,0.00016438,2]
[339098316,1727243443160,-794.13,0.00016438,2]
[339098318,1727243443170,-501.12979413,0.00016438,2]
[339098320,1727243443180,-500.0,0.00016438,2]
[339098322,1727243443191,-500.87146376,0.00016438,2]
[339098324,1727243443200,-500.0,0.00016438,2]
[339098326,1727243443210,-903.3,0.00016438,2]
[339098328,1727243443220,-500.0,0.00016438,2]
[339098330,1727243443230,-500.0,0.00016438,2]
[339098333,1727243443240,-500.0,0.00016438,2]
[339098334,1727243443249,-965.95,0.00016438,2]
[339098336,1727243443259,-558.07,0.00016438,2]
[339098338,1727243443268,-500.0,0.00016438,2]
[339098339,1727243443278,-502.29077958,0.00016438,2]
[339098341,1727243443289,-504.05909663,0.00016438,2]
[339098343,1727243443299,-957.29,0.00016438,2]
[339098345,1727243443309,-515.25356676,0.00016438,2]
[339098347,1727243443319,-4414.59,0.00016438,2]
[339098349,1727243443328,-500.0,0.00016438,2]
[339098351,1727243443338,-500.0,0.00016438,2]
[339098352,1727243443348,-500.0,0.00016438,2]
[339098354,1727243443358,-500.0,0.00016438,2]
[339098356,1727243443367,-500.0,0.00016438,2]
[339098358,1727243443382,-500.0,0.00016438,2]
[339098360,1727243443392,-500.0,0.00016438,2]
[339098362,1727243443402,-500.0,0.00016438,2]
[339098364,1727243443412,-1022.01,0.00016438,2]
[339098366,1727243443422,-500.0,0.00016438,2]
[339098368,1727243443432,-500.0,0.00016438,2]
[339098369,1727243443442,-500.0,0.00016438,2]
[339098371,1727243443452,-500.0,0.00016438,2]
[339098373,1727243443462,-619.5,0.00016438,2]
[339098375,1727243443472,-916.39,0.00016438,2]
[339098377,1727243443482,-500.0,0.00016438,2]
[339098379,1727243443493,-664.23,0.00016438,2]
[339098381,1727243443503,-500.0,0.00016438,2]
[339098382,1727243443513,-500.0,0.00016438,2]
[339098384,1727243443523,-578.81,0.00016438,2]
[339098386,1727243443533,-500.0,0.00016438,2]
[339098388,1727243443543,-204.47624594,0.00016438,2]
[339098390,1727243443553,-1092.36,0.00016438,2]
[339098392,1727243443563,-500.0,0.00016438,2]
[339098394,1727243443573,-500.0,0.00016438,2]
[339098396,1727243443583,-583.03,0.00016438,2]
[339098397,1727243443593,-500.0,0.00016438,2]
[339098399,1727243443602,-500.0,0.00016438,2]
[339098401,1727243443612,-500.0,0.00016438,2]
[339098403,1727243443624,-500.85387924,0.00016438,2]
[339098405,1727243443634,-549.19,0.00016438,2]
[339098407,1727243443644,-500.0,0.00016438,2]
[339098409,1727243443654,-500.0,0.00016438,2]
[339098411,1727243443665,-500.0,0.00016438,2]
[339098413,1727243443674,-500.0,0.00016438,2]
[339098415,1727243443684,-509.30670106,0.00016438,2]
[339098417,1727243443694,-500.0,0.00016438,2]
[339098419,1727243443704,-500.0,0.00016438,2]
[339098420,1727243443714,-263.82765291,0.00016438,2]
[339098422,1727243443734,-510.5055585,0.00016438,2]
[339098424,1727243443745,-397.25881911,0.00016438,2]
[339098426,1727243443755,-588.16,0.00016438,2]
[339098428,1727243443765,-210.50314184,0.00016438,2]
[339098430,1727243443775,-500.0,0.00016438,2]
[339098432,1727243443785,-500.3787007,0.00016438,2]
[339098434,1727243443796,-500.0,0.00016438,2]
[339098435,1727243443806,-500.0,0.00016438,2]
[339098437,1727243443816,-500.0,0.00016438,2]
[339098439,1727243443826,-1257.3,0.00016438,2]
[339098442,1727243443838,-1328.67,0.00016438,2]
[339098444,1727243443848,-500.0,0.00016438,2]
[339098445,1727243443858,-715.1,0.00016438,2]
[339098447,1727243443868,-509.40183838,0.00016438,2]
[339098449,1727243443878,-500.0,0.00016438,2]
[339098451,1727243443888,-500.0,0.00016438,2]
[339098453,1727243443899,-745.56,0.00016438,2]
[339098455,1727243443909,-500.0,0.00016438,2]
[339098457,1727243443919,-514.97,0.00016438,2]
[339098459,1727243443928,-500.0,0.00016438,2]
[339098461,1727243443938,-500.0,0.00016438,2]
[339098462,1727243443948,-464.19539959,0.00016438,2]
[339098464,1727243443957,-500.0,0.00016438,2]
[339098466,1727243443968,-514.51284027,0.00016438,2]
[339098468,1727243443978,-500.0,0.00016438,2]
[339098470,1727243443988,-500.0,0.00016438,2]
[339098472,1727243443999,-500.0,0.00016438,2]
[339098474,1727243444008,-500.0,0.00016438,2]
[339098476,1727243444018,-500.0,0.00016438,2]
[339098478,1727243444028,-500.0,0.00016438,2]
[339098480,1727243444038,-500.0,0.00016438,2]
[339098482,1727243444048,-500.0,0.00016438,2]
[339098484,1727243444058,-500.0,0.00016438,2]
[339098486,1727243444068,-500.0,0.00016438,2]
[339098488,1727243444078,-500.0,0.00016438,2]
[339098489,1727243444088,-500.0,0.00016438,2]
[339098491,1727243444098,-500.0,0.00016438,2]
[339098493,1727243444108,-500.0,0.00016438,2]
[339098495,1727243444120,-295.56372211,0.00016438,2]
[339098497,1727243444132,-500.0,0.00016438,2]
[339098499,1727243444144,-500.0,0.00016438,2]
[339098501,1727243444155,-500.0,0.00016438,2]
[339098503,1727243444165,-506.90914902,0.00016438,2]
[339098505,1727243444174,-140.70777946,0.00016438,2]
[339098558,1727243444736,-359.29222054,0.00016438,2]
[339098560,1727243444748,-46.27513682,0.00016438,2]
[339098563,1727243444762,-290.21825122,0.00016438,2]
[339098565,1727243444773,-183.11343754,0.00016438,2]
[339098566,1727243444783,-500.0,0.00016438,2]
[339098568,1727243444792,-500.0,0.00016438,2]
[339098570,1727243444801,-542.96,0.00016438,2]
[339098572,1727243444810,-661.1,0.00016438,2]
[339098574,1727243444820,-500.0,0.00016438,2]
[339098576,1727243444829,-703.19,0.00016438,2]
[339098578,1727243444838,-500.0,0.00016438,2]
[339098580,1727243444848,-500.0,0.00016438,2]
[339098582,1727243444858,-500.0,0.00016438,2]
[339098583,1727243444867,-500.0,0.00016438,2]
[339098585,1727243444878,-500.0,0.00016438,2]
[339098587,1727243444887,-500.0,0.00016438,2]
[339098589,1727243444898,-505.04432616,0.00016438,2]
[339098591,1727243444909,-500.0,0.00016438,2]
[339098593,1727243444918,-500.0,0.00016438,2]
[339098595,1727243444927,-500.0,0.00016438,2]
[339098597,1727243444936,-500.0,0.00016438,2]
[339098599,1727243444945,-565.58,0.00016438,2]
[339098600,1727243444955,-500.0,0.00016438,2]
[339098602,1727243444964,-500.0,0.00016438,2]
[339098604,1727243444973,-500.0,0.00016438,2]
[339098606,1727243444982,-501.75930275,0.00016438,2]
[339098608,1727243444992,-500.0,0.00016438,2]
[339098610,1727243445001,-500.0,0.00016438,2]
[339098612,1727243445010,-366.31494594,0.00016438,2]
[339098614,1727243445019,-500.0,0.00016438,2]
[339098615,1727243445028,-500.0,0.00016438,2]
[339098617,1727243445037,-500.0,0.00016438,2]
[339098619,1727243445048,-502.85458803,0.00016438,2]
[339098621,1727243445057,-500.0,0.00016438,2]
[339098623,1727243445066,-500.0,0.00016438,2]
[339098625,1727243445076,-500.0,0.00016438,2]
[339098627,1727243445086,-510.10826023,0.00016438,2]
[339098629,1727243445095,-500.0,0.00016438,2]
[339098631,1727243445104,-846.34,0.00016438,2]
[339098633,1727243445114,-500.0,0.00016438,2]
[339098635,1727243445124,-500.0,0.00016438,2]
[339098636,1727243445133,-500.0,0.00016438,2]
[339098638,1727243445143,-500.0,0.00016438,2]
[339098640,1727243445152,-500.0,0.00016438,2]
[339098642,1727243445161,-500.0,0.00016438,2]
[339098644,1727243445170,-500.0,0.00016438,2]
[339098646,1727243445180,-500.0,0.00016438,2]
[339098648,1727243445190,-604.00328427,0.00016438,2]
[339098650,1727243445199,-500.0,0.00016438,2]
[339098652,1727243445208,-500.0,0.00016438,2]
[339098654,1727243445217,-2112.33,0.00016438,2]
[339098655,1727243445226,-500.0,0.00016438,2]
[339098657,1727243445236,-500.0,0.00016438,2]
[339098659,1727243445246,-500.0,0.00016438,2]
[339098661,1727243445255,-500.0,0.00016438,2]
[339098663,1727243445264,-566.14180057,0.00016438,2]
[339098665,1727243445273,-500.0,0.00016438,2]
[339098667,1727243445284,-755.39,0.00016438,2]
[339098669,1727243445293,-500.0,0.00016438,2]
[339098671,1727243445302,-317.44378655,0.00016438,2]
[339098674,1727243445327,-515.70041427,0.00016438,2]
[339098675,1727243445340,-500.0,0.00016438,2]
[339098676,1727243445350,-500.0,0.00016438,2]
[339098677,1727243445360,-569.79,0.00016438,2]
[339098678,1727243445370,-500.0,0.00016438,2]
[339098679,1727243445380,-500.0,0.00016438,2]
[339098680,1727243445390,-595.16335619,0.00016438,2]
[339098681,1727243445400,-500.0,0.00016438,2]
[339098682,1727243445410,-500.0,0.00016438,2]
[339098683,1727243445420,-500.0,0.00016438,2]
[339098684,1727243445430,-500.0,0.00016438,2]
[339098685,1727243445439,-500.0,0.00016438,2]
[339098686,1727243445449,-500.0,0.00016438,2]
[339098687,1727243445459,-500.0,0.00016438,2]
[339098688,1727243445469,-500.0,0.00016438,2]
[339098689,1727243445479,-500.0,0.00016438,2]
[339098690,1727243445488,-560.35,0.00016438,2]
[339098691,1727243445498,-500.0,0.00016438,2]
[339098692,1727243445508,-502.10055461,0.00016438,2]
[339098693,1727243445518,-574.16,0.00016438,2]
[339098694,1727243445528,-500.0,0.00016438,2]
[339098695,1727243445538,-500.0,0.00016438,2]
[339098697,1727243445548,-500.0,0.00016438,2]
[339098698,1727243445558,-500.0,0.00016438,2]
[339098700,1727243445567,-664.81,0.00016438,2]
[339098702,1727243445577,-500.0,0.00016438,2]
[339098704,1727243445587,-500.0,0.00016438,2]
[339098706,1727243445596,-308.39339211,0.00016438,2]
[339098708,1727243445606,-500.0,0.00016438,2]
[339098710,1727243445617,-500.0,0.00016438,2]
[339098713,1727243445628,-705.37,0.00016438,2]
[339098717,1727243445638,-500.0,0.00016438,2]
[339098719,1727243445648,-500.0,0.00016438,2]
[339098721,1727243445657,-500.0,0.00016438,2]
[339098723,1727243445667,-500.0,0.00016438,2]
[339098725,1727243445677,-500.0,0.00016438,2]
[339098728,1727243445686,-500.0,0.00016438,2]
[339098730,1727243445696,-500.0,0.00016438,2]
[339098732,1727243445705,-509.40712157,0.00016438,2]
[339098734,1727243445715,-500.0,0.00016438,2]
[339098736,1727243445724,-500.0,0.00016438,2]
[339098738,1727243445734,-500.0,0.00016438,2]
[339098740,1727243445744,-500.0,0.00016438,2]
[339098742,1727243445753,-500.0,0.00016438,2]
[339098744,1727243445763,-500.0,0.00016438,2]
[339098746,1727243445773,-500.0,0.00016438,2]
[339098748,1727243445782,-500.0,0.00016438,2]
[339098750,1727243445792,-504.28512034,0.00016438,2]
[339098752,1727243445802,-629.02,0.00016438,2]
[339098754,1727243445811,-500.0,0.00016438,2]
[339098756,1727243445821,-500.0,0.00016438,2]
[339098758,1727243445831,-500.0,0.00016438,2]
[339098760,1727243445840,-500.0,0.00016438,2]
[339098762,1727243445850,-500.0,0.00016438,2]
[339098764,1727243445860,-500.0,0.00016438,2]
[339098766,1727243445871,-500.0,0.00016438,2]
[339098769,1727243445881,-500.0,0.00016438,2]
[339098771,1727243445891,-500.0,0.00016438,2]
[339098773,1727243445901,-500.0,0.00016438,2]
[339098775,1727243445914,-527.32,0.00016438,2]
[339098777,1727243445925,-500.0,0.00016438,2]
[339098779,1727243445935,-375.0,0.00016438,2]
[339098781,1727243445945,-500.0,0.00016438,2]
[339098784,1727243445955,-839.21,0.00016438,2]
[339098786,1727243445965,-729.27,0.00016438,2]
[339098788,1727243445975,-500.0,0.00016438,2]
[339098790,1727243445985,-500.0,0.00016438,2]
[339098792,1727243445994,-500.0,0.00016438,2]
[339098794,1727243446004,-500.0,0.00016438,2]
[339098796,1727243446014,-500.0,0.00016438,2]
[339098798,1727243446024,-500.0,0.00016438,2]
[339098800,1727243446034,-1661.69,0.00016438,2]
[339098802,1727243446043,-500.0,0.00016438,2]
[339098804,1727243446054,-500.0,0.00016438,2]
[339098806,1727243446064,-500.0,0.00016438,2]
[339098808,1727243446074,-500.0,0.00016438,2]
[339098811,1727243446084,-2834.06,0.00016438,2]
[339098813,1727243446094,-610.0,0.00016438,2]
[339098815,1727243446103,-507.39734981,0.00016438,2]
[339098817,1727243446113,-503.77114381,0.00016438,2]
[339098819,1727243446125,-500.0,0.00016438,2]
[339098821,1727243446139,-500.0,0.00016438,2]
[339098823,1727243446149,-933.08,0.00016438,2]
[339098825,1727243446159,-518.96,0.00016438,2]
[339098827,1727243446169,-500.0,0.00016438,2]
[339098829,1727243446180,-500.0,0.00016438,2]
[339098831,1727243446190,-500.0,0.00016438,2]
[339098833,1727243446199,-501.83332365,0.00016473,2]
[339098835,1727243446210,-249.90906147,0.00016473,2]
[339098837,1727243446219,-500.0,0.00016473,2]
[339098839,1727243446229,-500.0,0.00016473,2]
[339098841,1727243446239,-500.0,0.00016473,2]
[339098844,1727243446250,-500.0,0.00016473,2]
[339098846,1727243446260,-305.03591295,0.00016473,2]
[339098848,1727243446270,-500.0,0.00016473,2]
[339098850,1727243446280,-501.25350539,0.00016473,2]
[339098852,1727243446291,-500.0,0.00016473,2]
[339098854,1727243446301,-410.47732977,0.00016473,2]
[339098856,1727243446310,-500.0,0.00016473,2]
[339098858,1727243446320,-500.0,0.00016473,2]
[339098860,1727243446329,-500.0,0.00016473,2]
[339098862,1727243446339,-501.02642262,0.00016473,2]
[339098864,1727243446348,-500.0,0.00016473,2]
[339098866,1727243446358,-500.0,0.00016473,2]
[339098868,1727243446367,-150.0,0.00016483,2]
[339098870,1727243446381,-153.0,0.000165,2]
[339098873,1727243446391,-7146.18197968,0.00016647,2]
[339098875,1727243446400,-160.0,0.00016711,2]
[339098877,1727243446410,-581.97096738,0.00016711,2]
[339098878,1727243446419,-500.0,0.00016711,2]
[339098879,1727243446429,-500.0,0.00016711,2]
[339098880,1727243446439,-500.0,0.00016711,2]
[339098881,1727243446448,-356.41142377,0.00016711,2]
[339098882,1727243446458,-500.0,0.00016711,2]
[339098883,1727243446467,-500.0,0.00016711,2]
[339098884,1727243446477,-500.0,0.00016711,2]
[339098885,1727243446486,-500.0,0.00016711,2]
[339098886,1727243446496,-500.0,0.00016711,2]
[339098887,1727243446505,-568.24313624,0.00016711,2]
[339098888,1727243446515,-103.12740349,0.00016712,2]
[339098889,1727243446525,-151.0,0.00016712,2]
[339098890,1727243446534,-151.0,0.00016712,2]
[339098891,1727243446544,-151.0,0.00016712,2]
[339098892,1727243446554,-151.0,0.00016712,2]
[339098893,1727243446563,-151.0,0.00016712,2]
[339098894,1727243446573,-183.554583,0.00016712,2]
[339098895,1727243446583,-183.554583,0.00016712,2]
[339098896,1727243446593,-151.0,0.00016712,2]
[339098897,1727243446603,-151.0,0.00016712,2]
[339098898,1727243446612,-151.0,0.00016712,2]
[339098899,1727243446622,-151.918782,0.00016712,2]
[339098900,1727243446632,-266.617909,0.00016712,2]
[339098901,1727243446642,-266.617909,0.00016712,2]
[339098902,1727243446651,-500.0,0.00016712,2]
[339098904,1727243446661,-500.0,0.00016712,2]
[339098906,1727243446670,-477.8300067,0.00016712,2]
[339098908,1727243446684,-500.0,0.00016712,2]
[339098910,1727243446693,-500.0,0.00016712,2]
[339098911,1727243446702,-505.64431323,0.00016712,2]
[339098912,1727243446711,-500.0,0.00016712,2]
[339098913,1727243446721,-500.0,0.00016712,2]
[339098914,1727243446731,-500.0,0.00016712,2]
[339098915,1727243446741,-500.0,0.00016712,2]
[339098916,1727243446751,-254.40774702,0.00016712,2]
[339098917,1727243446761,-243.80343129,0.00016712,2]
[339098918,1727243446770,-500.0,0.00016712,2]
[339098919,1727243446779,-500.0,0.00016712,2]
[339098920,1727243446789,-500.0,0.00016712,2]
[339098921,1727243446798,-569.84161024,0.00016712,2]
[339098922,1727243446808,-500.0,0.00016712,2]
[339098923,1727243446817,-500.0,0.00016712,2]
[339098925,1727243446918,-500.0,0.00016712,2]
[339098926,1727243446928,-500.0,0.00016712,2]
[339098927,1727243446938,-500.0,0.00016712,2]
[339098928,1727243446947,-500.0,0.00016712,2]
[339098929,1727243446956,-500.0,0.00016712,2]
[339098930,1727243446965,-540.70501275,0.00016712,2]
[339098931,1727243446981,-36.90376659,0.00016712,2]
[339098932,1727243446990,-266.09623341,0.00016712,2]
[339098933,1727243447217,-263.19376659,0.00016712,2]
[339098934,1727243447226,-500.0,0.00016712,2]
[339098935,1727243447235,-500.0,0.00016712,2]
[339098936,1727243447246,-500.0,0.00016712,2]
[339098937,1727243447256,-500.0,0.00016712,2]
[339098938,1727243447265,-500.0,0.00016712,2]
[339098939,1727243447275,-570.63,0.00016712,2]
[339098940,1727243447284,-506.10840459,0.00016712,2]
[339098941,1727243447294,-500.0,0.00016712,2]
[339098942,1727243447303,-500.0,0.00016712,2]
[339098943,1727243447312,-500.0,0.00016712,2]
[339098944,1727243447321,-500.0,0.00016712,2]
[339098945,1727243447330,-503.81702598,0.00016712,2]
[339098946,1727243447339,-425.90275955,0.00016712,2]
[339098947,1727243447348,-500.0,0.00016712,2]
[339098948,1727243447358,-500.0,0.00016712,2]
[339098949,1727243447367,-503.95406092,0.00016712,2]
[339098950,1727243447376,-504.89882747,0.00016712,2]
[339098951,1727243447385,-500.0,0.00016712,2]
[339098952,1727243447393,-500.0,0.00016712,2]
[339098953,1727243447403,-339.50185157,0.00016712,2]
[339098954,1727243447411,-500.0,0.00016712,5]
[339098955,1727243447420,-500.0,0.00016712,2]
[339098956,1727243447429,-500.0,0.00016712,2]
[339098957,1727243447439,-500.0,0.00016712,2]
[339098958,1727243447449,-500.0,0.00016712,2]
[339098959,1727243447460,-500.0,0.00016712,2]
[339098960,1727243447470,-683.25,0.00016712,2]
[339098961,1727243447479,-500.0,0.00016712,2]
[339098962,1727243447490,-506.42866638,0.00016712,2]
[339098963,1727243447502,-500.0,0.00016712,2]
[339098964,1727243447513,-500.0,0.00016712,2]
[339098965,1727243447525,-500.0,0.00016712,2]
[339098966,1727243447535,-500.0,0.00016712,2]
[339098967,1727243447546,-500.0,0.00016712,2]
[339098968,1727243447558,-500.0,0.00016712,2]
[339098969,1727243447568,-500.0,0.00016712,2]
[339098970,1727243447578,-500.0,0.00016712,2]
[339098971,1727243447589,-500.0,0.00016712,2]
[339098972,1727243447599,-500.0,0.00016712,2]
[339098973,1727243447611,-500.0,0.00016712,2]
[339098974,1727243447622,-500.0,0.00016712,2]
[339098975,1727243447632,-500.0,0.00016712,2]
[339098976,1727243447642,-500.0,0.00016712,2]
[339098977,1727243447652,-500.0,0.00016712,2]
[339098978,1727243447663,-500.0,0.00016712,2]
[339098979,1727243447673,-531.082875,0.00016712,2]
[339098980,1727243447682,-500.0,0.00016712,2]
[339098981,1727243447691,-500.0,0.00016712,2]
[339098982,1727243447701,-500.0,0.00016712,2]
[339098983,1727243447710,-500.0,0.00016712,2]
[339098984,1727243447719,-500.0,0.00016712,2]
[339098985,1727243447729,-500.0,0.00016712,2]
[339098986,1727243447738,-500.0,0.00016712,2]
[339098987,1727243447748,-500.0,0.00016712,2]
[339098988,1727243447758,-500.0,0.00016712,2]
[339098989,1727243447768,-620.48,0.00016712,2]
[339098990,1727243447777,-500.0,0.00016712,2]
[339098991,1727243447787,-514.36042667,0.00016712,2]
[339098992,1727243447797,-500.0,0.00016712,2]
[339098993,1727243447806,-500.0,0.00016712,2]
[339098994,1727243447816,-500.0,0.00016712,2]
[339098995,1727243447826,-500.0,0.00016712,2]
[339098996,1727243447835,-500.0,0.00016712,2]
[339098997,1727243447845,-500.0,0.00016712,2]
[339098998,1727243447855,-500.0,0.00016712,2]
[339098999,1727243447864,-330.46503443,0.00016712,2]
[339099000,1727243447875,-500.0,0.00016712,2]
[339099001,1727243447884,-500.0,0.00016712,2]
[339099002,1727243447895,-500.0,0.00016712,2]
[339099003,1727243447905,-500.0,0.00016712,2]
[339099004,1727243447914,-676.26,0.00016712,2]
[339099005,1727243447924,-500.0,0.00016712,2]
[339099006,1727243447933,-500.0,0.00016712,2]
[339099007,1727243447946,-516.75044849,0.00016712,2]
[339099008,1727243447955,-500.0,0.00016712,2]
[339099009,1727243447965,-500.0,0.00016712,2]
[339099010,1727243447974,-500.0,0.00016712,2]
[339099011,1727243447983,-187.63639067,0.00016712,2]
[339099012,1727243447993,-500.0,0.00016712,2]
[339099013,1727243448002,-500.0,0.00016712,2]
[339099014,1727243448011,-500.0,0.00016712,2]
[339099015,1727243448020,-500.0,0.00016712,2]
[339099016,1727243448029,-358.83318281,0.00016712,2]
[339099017,1727243448040,-500.0,0.00016712,2]
[339099018,1727243448049,-500.0,0.00016712,2]
[339099019,1727243448061,-500.0,0.00016712,2]
[339099020,1727243448070,-500.0,0.00016712,2]
[339099021,1727243448080,-500.0,0.00016712,2]
[339099022,1727243448089,-500.0,0.00016712,2]
[339099023,1727243448098,-500.0,0.00016712,2]
[339099024,1727243448108,-173.46205444,0.00016712,2]
[339099025,1727243448117,-222.81138706,0.00016712,2]
[339099026,1727243448127,-504.72797092,0.00016712,2]
[339099027,1727243448137,-500.0,0.00016712,2]
[339099028,1727243448146,-500.0,0.00016712,2]
[339099029,1727243448155,-854.12,0.00016712,2]
[339099030,1727243448165,-500.0,0.00016712,2]
[339099031,1727243448174,-607.64461943,0.00016712,2]
[339099032,1727243448183,-500.0,0.00016712,2]
[339099033,1727243448193,-508.75525013,0.00016712,2]
[339099034,1727243448202,-525.18,0.00016712,2]
[339099035,1727243448211,-500.0,0.00016712,2]
[339099036,1727243448220,-500.0,0.00016712,2]
[339099037,1727243448229,-500.0,0.00016712,2]
[339099038,1727243448238,-290.43445699,0.00016712,2]
[339099039,1727243448248,-644.17,0.00016712,2]
[339099040,1727243448258,-500.0,0.00016712,2]
[339099041,1727243448267,-784.9,0.00016712,2]
[339099042,1727243448276,-500.0,0.00016712,2]
[339099043,1727243448285,-500.0,0.00016712,2]
[339099044,1727243448295,-734.61,0.00016712,2]
[339099045,1727243448304,-500.0,0.00016712,2]
[339099046,1727243448314,-502.28186706,0.00016712,2]
[339099047,1727243448323,-500.0,0.00016712,2]
[339099048,1727243448332,-500.0,0.00016712,2]
[339099049,1727243448341,-623.38,0.00016712,2]
[339099050,1727243448351,-500.0,0.00016712,2]
[339099051,1727243448360,-500.0,0.00016712,2]
[339099052,1727243448370,-500.0,0.00016712,2]
[339099053,1727243448381,-959.51,0.00016712,2]
[339099054,1727243448391,-500.0,0.00016712,2]
[339099055,1727243448400,-501.55820249,0.00016712,2]
[339099056,1727243448409,-500.0,0.00016712,2]
[339099057,1727243448419,-500.0,0.00016712,2]
[339099058,1727243448428,-433.5,0.00016712,2]
[339099059,1727243448438,-500.0,0.00016712,2]
[339099060,1727243448448,-500.0,0.00016712,2]
[339099061,1727243448457,-500.0,0.00016712,2]
[339099062,1727243448467,-500.0,0.00016712,2]
[339099063,1727243448477,-502.19690123,0.00016712,2]
[339099064,1727243448486,-500.0,0.00016712,2]
[339099065,1727243448496,-500.0,0.00016712,2]
[339099066,1727243448506,-537.98,0.00016712,2]
[339099067,1727243448515,-500.0,0.00016712,2]
[339099068,1727243448525,-501.44665171,0.00016712,2]
[339099069,1727243448534,-531.06,0.00016712,2]
[339099070,1727243448544,-535.25,0.00016712,2]
[339099071,1727243448553,-500.0,0.00016712,2]
[339099072,1727243448562,-500.0,0.00016712,2]
[339099073,1727243448572,-782.66,0.00016712,2]
[339099074,1727243448581,-500.0,0.00016712,2]
[339099075,1727243448590,-500.0,0.00016712,2]
[339099076,1727243448600,-500.0,0.00016712,2]
[339099077,1727243448610,-1834.34,0.00016712,2]
[339099078,1727243448619,-503.28259536,0.00016712,2]
[339099079,1727243448631,-500.0,0.00016712,2]
[339099080,1727243448641,-500.0,0.00016712,2]
[339099081,1727243448650,-500.0,0.00016712,2]
[339099082,1727243448660,-500.0,0.00016712,2]
[339099083,1727243448670,-500.0,0.00016712,2]
[339099084,1727243448681,-500.0,0.00016712,2]
[339099085,1727243448691,-500.0,0.00016712,2]
[339099086,1727243448700,-500.0,0.00016712,2]
[339099087,1727243448709,-500.0,0.00016712,2]
[339099088,1727243448719,-1115.13,0.00016712,2]
[339099089,1727243448728,-500.0,0.00016712,2]
[339099090,1727243448737,-511.73909019,0.00016712,2]
[339099091,1727243448747,-500.0,0.00016712,2]
[339099092,1727243448757,-500.0,0.00016712,2]
[339099093,1727243448767,-619.53,0.00016712,2]
[339099094,1727243448776,-718.15,0.00016712,2]
[339099095,1727243448786,-500.0,0.00016712,2]
[339099096,1727243448795,-500.0,0.00016712,2]
[339099097,1727243448804,-500.0,0.00016712,2]